{"text_format":"1","workbook":"xlsx","n_sheets":2,"sheets":["Checkliste","Maßnahmenplan"],"not_rendered":{"charts":0,"images":2,"macros":1,"external_links":0,"defined_names":1,"comments":0,"pivot_tables":0},"unopened":[],"bounds":{"document_bytes":16777216,"sheet_cells":100000,"rows_first":2000,"rows_last":500,"rows_between":2000,"halvings":0,"cell_chars":16384,"cell_head_chars":4096},"cells_cut":0,"cells_raw":0,"read":"whole","date_system":"1900"}

{"sheet":"Checkliste","index":0,"n_rows":53,"n_cols":11,"rows_kept":53,"cut":false,"hidden":false,"merged":[[4,1,4,2],[8,3,8,4],[38,0,38,5],[39,0,39,5],[9,1,9,6],[10,1,10,6],[11,1,11,6],[15,1,15,6],[23,1,23,6],[33,1,33,6],[19,1,19,6],[16,1,16,6],[30,1,30,6]]}
["Checkliste VLOG-Zusatzmodul"]
["Landwirtschaft Rinderhaltung"]
[]
["Betrieb: "]
["Standortnummer:"]
["Datum:"]
[]
[]
["Nr.",null,"Kriterium/Anforderung","Einschätzung Auditor",null,"Bemerkungen/ Korrektur-maßnahmen-Nr.","Bewertungsmöglichkeit"]
["II.","VLOG-Zusatzmodul „Ohne Gentechnik“ "]
["II. 1","Anforderungen „ohne Gentechnik\""]
["II. 1.1","Allgemeine Anforderungen an landwirtschaftliche Unternehmen"]
["I. 1.1.1",null,"Betriebsbeschreibung",null,{"$f":"IF(D13=\"A\",100,IF(D13=\"B\",75,IF(D13=\"C\",50,IF(D13=\"D/KO\",0,IF(D13=\"E\",\"\",\"\")))))","v":""},null,"AD"]
["I. 1.1.2","D=KO","Regelung von Verantwortlichen / Organigramm",null,"",null,"AD"]
["I. 1.1.3",null,"Schulung der Mitarbeiter",null,"",null,"ADE",null,null,null,{"$f":"IFERROR(INDEX(D:D,MATCH(\"D/KO\",D:D,0),1),\"\")","v":""}]
["II. 2","Spezifische Anforderungen Tierische Produktion"]
["II. 2.1","Qualitätsmanagementsystem"]
["II. 2.1.1",null,"Eigenkontrolle / Risikomanagement",null,{"$f":"IF(D18=\"A\",100,IF(D18=\"B\",75,IF(D18=\"C\",50,IF(D18=\"D/KO\",0,IF(D18=\"E\",\"\",\"\")))))","v":""},null,"AD"]
["II. 2.1.2",null,"Beauftragung externer Dienstleister",null,{"$f":"IF(D19=\"A\",100,IF(D19=\"B\",75,IF(D19=\"C\",50,IF(D19=\"D/KO\",0,IF(D19=\"E\",\"\",\"\")))))","v":""},null,"ADE"]
["II. 2.2","Fütterung"]
["II. 2.2.1",null,"\"Ohne Gentechnik\"-konforme Fütterung",null,{"$f":"IF(D21=\"A\",100,IF(D21=\"B\",75,IF(D21=\"C\",50,IF(D21=\"D/KO\",0,IF(D21=\"E\",\"\",\"\")))))","v":""},null,"ADE"]
["II. 2.2.2",null,"Futtermittellisten",null,{"$f":"IF(D22=\"A\",100,IF(D22=\"B\",75,IF(D22=\"C\",50,IF(D22=\"D/KO\",0,IF(D22=\"E\",\"\",\"\")))))","v":""},null,"ADE"]
["II. 2.2.3",null,"Überbetriebliche Nutzung von Maschinen, Anlagen / Externe Dienstleister",null,{"$f":"IF(D23=\"A\",100,IF(D23=\"B\",75,IF(D23=\"C\",50,IF(D23=\"D/KO\",0,IF(D23=\"E\",\"\",\"\")))))","v":""},null,"ADE"]
["II. 2.3","Kontrolle der Futtermittel"]
["II. 2.3.1","D=KO","Wareneingangskontrolle",null,{"$f":"IF(D25=\"A\",100,IF(D25=\"B\",75,IF(D25=\"C\",50,IF(D25=\"D/KO\",0,IF(D25=\"E\",\"\",\"\")))))","v":""},null,"ADE"]
["II. 2.3.2",null,"Probenahme und Analyse",null,"",null,"ADE"]
["II. 2.3.3",null,"Probenahmehäufigkeit und Aufbewahrung von Rückstellmustern",null,"",null,"ADE"]
["II. 2.3.4",null,"Analysehäufigkeit",null,"",null,"ADE"]
["II. 2.3.5","D=KO","Umgang mit positiven GVO-Analyseergebnissen",null,"",null,"ADE"]
["II. 2.3.6","D=KO","Trennung der Warenströme/Ausschluss der Verschleppungen von GVO-Futtermittel, Vermischung und Vertauschung",null,"",null,"ADE"]
["II. 2.4","Nutzung von fahrbaren Mahl- und Mischanlagen"]
["II. 2.4.1",null,"Nutzung von überbetrieblich eingesetzten Mahl- und / oder Mischanlagen",null,{"$f":"IF(D32=\"A\",100,IF(D32=\"B\",75,IF(D32=\"C\",50,IF(D32=\"D/KO\",0,IF(D32=\"E\",\"\",\"\")))))","v":""},null,"ADE"]
["II. 2.4.2",null,"Nutzung von stationären eingesetzten Mahl- und / oder Mischanlagen",null,{"$f":"IF(D33=\"A\",100,IF(D33=\"B\",75,IF(D33=\"C\",50,IF(D33=\"D/KO\",0,IF(D33=\"E\",\"\",\"\")))))","v":""},null,"ADE",{"$f":"IF(F41=\"\",\"\",IF(AND(F41>0,F41<75),\"nicht bestanden\",IF(F41>=75,\"bestanden\",\"\")))","v":""}]
["II. 2.5","Tierbestand"]
["II. 2.5.1",null,"Tierbestandsübersicht",null,{"$f":"IF(D35=\"A\",100,IF(D35=\"B\",75,IF(D35=\"C\",50,IF(D35=\"D/KO\",0,IF(D35=\"E\",\"\",\"\")))))","v":""},null,"ADE"]
["II. 2.5.2","D=KO","Einhaltung der Mindestfütterungsfristen",null,{"$f":"IF(D36=\"A\",100,IF(D36=\"B\",75,IF(D36=\"C\",50,IF(D36=\"D/KO\",0,IF(D36=\"E\",\"\",\"\")))))","v":""},null,"ADE"]
[]
[]
["Das VLOG-Zusatzmodul gilt als bestanden, wenn > 75 % der möglichen Punkte erreicht wurden (E-Bewertungen nicht mitgerechnet)."]
[]
["Auditergebnis (%): ",{"$f":"IFERROR(IF(K15=\"D/KO\",\"KO\",(SUM(E13:E15,E18:E18,E25:E26,E28,E29:E33,E35:E36)/COUNT(E13:E15,E18:E18,E25:E26,E28,E29:E33,E35:E36))),\"\")","v":""},{"$f":"IF(B41=\"\",\"\",IF(OR(AND(B41>0,B41<75),B41=\"KO\"),\"nicht bestanden\",IF(B41>=75,\"bestanden\",\"\")))","v":""}]
[]
[]
["Risikoklasse*",null,"Zertifizierungsstelle:"]
[]
[]
[]
["Unterschrift Auditor",null,"Unterschrift Systempartner"]
[]
["* sofern eine Risikoeinstufung in Risikoklassen gefordert ist"]
[]
[]
["Bemerkungen"]

{"sheet":"Maßnahmenplan","index":1,"n_rows":15,"n_cols":13,"rows_kept":15,"cut":false,"hidden":false,"merged":[[8,10,8,11],[0,8,0,10],[3,0,3,6],[4,0,4,6],[7,10,7,11],[14,10,14,11],[9,10,9,11],[10,10,10,11],[11,10,11,11],[12,10,12,11],[13,10,13,11]]}
["Betrieb:",null,null,null,null,"Datum:","","Betrieb: ",{"$f":"IF(B1<>\"\",B1,\"\")","v":""},null,null,"Datum:     ",""]
[null,null,null,null,{"$f":"COUNTA(B9:B101)","v":0},"Massnahmenplan"]
["Maßnahmenplan",null,null,null,null,null,null,"Überprüfung der Umsetzung der Korrekturmaßnahmen"]
["Hiermit bestätige ich, dass die nachfolgend aufgeführten Korrekturmaßnahmen zwischen mir und dem Auditor vereinbart wurden."]
["Die Zertifizierungsstelle ist spätestens mit Ablauf der im Maßnahmenplan festgelegten Frist über die Umsetzung einer Korrekturmaßnahme zu informieren"]
[]
["Ort, Datum",null,"Unterschrift Auditor",null,"Unterschrift Betriebsverantwortlicher",null,null,"Ort, Datum",null,null,"Unterschrift/en Auditor/en"]
["Lfd. Nr. ","An-forderung Nr.","Bewertung  (D/ KO)","Beschreibung der Abweichung","Vereinbarte Korrekturmaßnahme","Betriebszweig ","Behebungsfrist","Lfd. Nr. ","Erfüllt","Nicht erfüllt","Ggf. Bemerkungen",null,"Datum"]
[1,null,null,null,null,null,null,1]
[2,null,null,null,null,null,null,2]
[3,null,null,null,null,null,null,3]
[4,null,null,null,null,null,null,4]
[5,null,null,null,null,null,null,5]
[6,null,null,null,null,null,null,6]
[7,null,null,null,null,null,null,7]